Cogmind - Beta 10 @@@ ROGUE MODE // 2020.09.17 @ 07:47:15 Player: Finestep Result: Self-destructed Performance ------------- Evolutions (7) 3500 Regions Visited (23) 4600 Robots Destroyed (214) 1070 Value Destroyed (5105) 5105 Prototype IDs (220) 4400 Alien Tech Used (5) 1000 Bonus (5089) 5089 TOTAL SCORE: 24764 Bonus ------- High Alert Combat Kills 148 Follower Combat Kills 109 Entered Garrisons 200 Used RIF Installer 500 Met Data Miner 300 Used Data Conduit 3000 Scanned by Researcher 500 Pursued by Intercept 1000 Friendly Fire -668 Cogmind --------- Core Integrity 984/1300 Matter 251/300 Energy 350/350 System Corruption 9% Temperature Cool (0) Movement Core (550) Ox10 Location -3/Quarantine Parts ------- > --- POWER (2) -------- Enhanced Fission Core > --- PROPULSION (6) --- Q-thruster Q-thruster Impulse Thruster Array > --- UTILITY (12) ----- Large Storage Unit Experimental Signal Interpreter Experimental Terrain Scanner Experimental Terrain Scan Processor Improved Transmission Jammer Advanced Hacking Suite Deep Network Scanner Advanced System Shield Relay Coupler [NC] (14) > --- WEAPON (2) ------- (None) > --- INVENTORY (10) --- Impulse Thruster Advanced Energy Well (800) Experimental Sensor Array Nanoactuators Subatomic Replicator Heavy Proton Cannon Nova Cannon Compact Tesla Bomb Launcher Improved Remote Datajack Katana Peak State ------------ > --- POWER ------------ Enhanced Fission Core Mini Fusion Reactor > --- PROPULSION ------- Q-thruster Q-thruster Q-thruster Q-thruster Impulse Thruster Array > --- UTILITY ---------- Large Storage Unit Experimental Sensor Array Experimental Signal Interpreter Experimental Terrain Scanner Experimental Terrain Scan Processor Advanced Melee Analysis Suite Experimental Propulsion Shielding Improved Medium Armor Plating Advanced Hacking Suite Deep Network Scanner Advanced System Shield Relay Coupler [NC] > --- WEAPON ----------- Sigix Broadsword > --- INVENTORY -------- Advanced Energy Well Nanoactuators Improved Transmission Jammer Heavy Proton Cannon Nova Cannon Core Cannon Compact Tesla Bomb Launcher Improved Remote Datajack Katana [Rating: 162] Favorites ----------- Power Ion Engine Engine Ion Engine Power Core Light Nuclear Core Reactor Mini Fusion Reactor Propulsion Light Treads Treads Light Treads Leg Aluminum Leg Wheel Wheel Hover Unit Combat Airjet Flight Unit Cooled VTOL Module Utility High-capacity Storage Unit Device Experimental Sensor Array Storage High-capacity Storage Unit Processor Advanced Melee Analysis Suite Hackware Makeshift Hacking Suite Protection Medium Armor Plating Weapon Gauss Cannon Energy Gun Small Laser Energy Cannon Beam Cannon Ballistic Gun Light Assault Rifle Ballistic Cannon Gauss Cannon Launcher Missile Launcher Special Weapon Improved Remote Datajack Slashing Weapon Katana Piercing Weapon Heavy Pick Build | -11 -10 -10 -9 -9 -9 -8 -8 -8 -8 -8 -6 -6 -6 -6 -5 -5 -4 -4 -4 -4 -3 -3 -3 ------- Run | Scr Mat Min Mat Min Exi Min Mat Sto Gar Rec Fac Low Low Dat Pro Fac Fac Upp Upp Zhi Pro Res Qua Slots Evolved 14 | . . . 2 . . . 2 . . . 4 . . . . 2 2 . . . . 2 . Power 1 | . . . . . . . . . . . . . . . . 1 . . . . . . . Propulsion 3 | . . . . . . . 1 . . . 1 . . . . . 1 . . . . . . Utility 10 | . . . 2 . . . 1 . . . 3 . . . . 1 1 . . . . 2 . Weapon . | . . . . . . . . . . . . . . . . . . . . . . . . Parts Attached 305 | 7 13 13 36 5 2 5 14 57 16 11 16 5 7 4 9 20 16 2 2 2 12 20 11 Power 27 | 1 1 1 3 3 . . 1 4 2 . . 1 1 1 . 2 2 . . 1 1 2 . Engine 15 | 1 1 1 2 3 . . . 3 . . . 1 . 1 . 2 . . . . . . . Core 9 | . . . 1 . . . 1 1 2 . . . 1 . . . 2 . . . . 1 . Reactor 3 | . . . . . . . . . . . . . . . . . . . . 1 1 1 . Propulsion 63 | 2 4 5 7 . . . 8 17 3 . 4 . . . . . 5 . 1 . . 3 4 Treads 39 | 2 3 1 6 . . . 8 16 3 . . . . . . . . . . . . . . Leg 3 | . . 3 . . . . . . . . . . . . . . . . . . . . . Wheel 2 | . 1 1 . . . . . . . . . . . . . . . . . . . . . Hover 1 | . . . 1 . . . . . . . . . . . . . . . . . . . . Flight 18 | . . . . . . . . 1 . . 4 . . . . . 5 . 1 . . 3 4 Utility 86 | 2 2 . 9 1 2 1 3 10 1 2 11 2 5 3 6 5 7 . 1 1 3 7 2 Device 19 | . . . 1 . . . . . . . 3 1 1 1 3 2 1 . 1 1 2 1 1 Storage 21 | 2 2 . 4 . 2 . 1 4 . 1 . . . . . 2 2 . . . . 1 . Processor 8 | . . . . . . . . . . 1 1 1 . 1 1 . 2 . . . . 1 . Hackware 18 | . . . . . . . . 1 . . 6 . 4 . 1 1 2 . . . 1 1 1 Protection 20 | . . . 4 1 . 1 2 5 1 . 1 . . 1 1 . . . . . . 3 . Artifact . | . . . . . . . . . . . . . . . . . . . . . . . . Weapon 129 | 2 6 7 17 1 . 4 2 26 10 9 1 2 1 . 3 13 2 2 . . 8 8 5 Energy Gun 11 | 1 3 . . . . . . 2 . . . . . . . 5 . . . . . . . Energy Cannon 28 | . 1 1 1 . . . . 6 1 4 . . . . . 3 1 1 . . 4 3 2 Ballistic Gun 30 | 1 1 5 12 1 . 2 2 4 . 2 . . . . . . . . . . . . . Ballistic Cannon 17 | . . . . . . . . 12 5 . . . . . . . . . . . . . . Launcher 18 | . . 1 4 . . 2 . 2 3 3 . 1 . . 1 . . . . . . 1 . Special Weapon 6 | . 1 . . . . . . . 1 . . . . . 1 . . 1 . . . 1 1 Impact Weapon . | . . . . . . . . . . . . . . . . . . . . . . . . Slashing Weapon 18 | . . . . . . . . . . . 1 1 . . 1 5 1 . . . 4 3 2 Piercing Weapon 1 | . . . . . . . . . . . . . 1 . . . . . . . . . . Special Melee Weapon . | . . . . . . . . . . . . . . . . . . . . . . . . Unidentified Prototypes 11 | . . . . . . . . 6 . . . . . . 1 . . . 1 1 . 1 1 Parts Lost 42 | . 5 1 9 1 . . 2 9 4 . . . . . 2 . . . . . 1 1 7 Power 10 | . 1 . 3 1 . . . 2 1 . . . . . . . . . . . . 1 1 Propulsion 10 | . 1 1 1 . . . 1 3 1 . . . . . . . . . . . . . 2 Utility 8 | . . . . . . . 1 1 1 . . . . . 1 . . . . . 1 . 3 Weapon 14 | . 3 . 5 . . . . 3 1 . . . . . 1 . . . . . . . 1 Highest Loss Streak 7 | . 3 1 4 1 . . 1 3 3 . . . . . 2 . . . . . 1 1 7 Average Slot Usage (%) 97 | . 98 99 98 97 100 99 98 99 98 99 89 92 93 98 93 88 91 94 93 95 94 93 87 Engine 6 | . 13 14 9 8 11 11 6 6 . . . . 2 . 6 5 3 . . . . . . Core 2 | . . . . . . . 2 2 8 9 6 5 3 5 . . 6 5 5 5 5 2 4 Treads 16 | . 22 7 20 22 22 22 26 26 26 27 . . . . . . . . . . . . . Leg 1 | . . 15 . . . . . . . . . . . . . . . . . . . . . Wheel 1 | . 4 4 1 . . . . . . . . . . . . . . . . . . . . Flight 6 | . . . . . . . . . . . 25 26 26 26 26 23 25 26 26 30 30 22 20 Device 2 | . . . 2 . . . . . . . 8 12 13 1 8 5 7 10 9 9 10 8 9 Storage 25 | . 28 28 33 33 43 34 35 36 36 40 3 . . . . 4 2 5 5 5 5 4 4 Processor 4 | . . . . . . . . . . 2 3 12 13 18 19 17 15 15 15 15 15 17 13 Hackware 6 | . . . . . . . . . . . 28 27 26 26 20 22 22 21 20 20 20 17 17 Protection 4 | . . . 8 11 . 8 9 8 8 1 3 . . 4 3 . . . . . . 4 8 Energy Gun 1 | . 9 . . . . . . . . . . . . . . 1 . . . . . . . Energy Cannon 3 | . 11 3 . . . . . 3 . 13 1 . . . . . . . 5 3 1 . . Ballistic Gun 8 | . 6 24 21 22 22 20 17 2 . 1 . . . . . . . . . . . . . Ballistic Cannon 2 | . . . . . . . . 11 17 . . . . . . . . . . . . . . Slashing Weapon 1 | . . . . . . . . . . . 4 6 6 6 6 3 5 5 5 5 3 3 3 Naked Turns . | . . . . . . . . . . . . . . . . . . . . . . . . Heaviest Build 154 | 17 41 41 110 115 120 120 129 154 154 150 13 13 17 20 23 20 36 36 36 48 38 53 57 Greatest Support 71 | 40 40 40 40 40 40 40 60 66 66 64 20 10 20 20 28 28 41 37 42 42 42 54 71 Greatest Overweight (x) 18 | . 4 3 4 2 2 2 3 3 3 2 . 1 . . . . . . . 1 . 1 18 Average Overweight (x) . | . 2 1 2 2 2 2 2 2 2 2 . . . . . . . . . . . . . Largest Inventory Capacity 36 | 8 16 16 28 28 34 34 34 36 36 36 36 4 4 4 4 4 8 8 8 8 8 10 10 Average Capacity 21 | 6 15 16 26 28 33 27 33 34 36 36 7 4 4 4 4 4 5 8 8 8 8 9 10 Most Carried 36 | 4 16 16 28 28 32 32 34 36 36 36 36 4 4 4 4 4 7 8 8 8 8 10 10 Average Carried 20 | 1 12 15 23 27 31 27 30 33 35 35 6 2 3 2 3 3 4 7 7 7 7 8 9 Final Capacity 36 | 8 16 16 28 28 34 26 34 36 36 36 4 4 4 4 4 4 8 8 8 8 8 10 10 Final Carried 36 | 4 16 16 28 28 32 26 34 36 36 36 4 4 4 4 4 4 7 8 7 8 8 6 10 Class Distribution -------------------- 50% | Hauler-Mutant 22% | Hacker-Scout 14% | Mutant 7% | Scavenger-Mutant Dominant Class ---------------- Mutant | -10/Materials Scavenger-Mutant | -10/Mines Hauler-Mutant | -9/Materials Hauler-Mutant | -9/Mines Hauler-Mutant | -9/Exiles Hauler-Mutant | -8/Mines Hauler-Mutant | -8/Materials Hauler-Mutant | -8/Storage Hauler-Mutant | -8/Garrison Hauler-Mutant | -8/Recycling Hacker-Sprinter | -6/Factory Hacker-Scout | -6/Lower Caves Hacker-Scout | -6/Lower Caves Hacker-Sprinter | -6/Data Miner Hacker-Scout | -5/Proximity Caves Hacker-Scout | -5/Factory Hacker-Scout | -4/Factory Hacker-Scout | -4/Upper Caves Hacker-Scout | -4/Upper Caves Hacker-Scout | -4/Zhirov Hacker-Scout | -3/Proximity Caves Hacker-Scout | -3/Research Hacker-Scout | -3/Quarantine Resources | -11 -10 -10 -9 -9 -9 -8 -8 -8 -8 -8 -6 -6 -6 -6 -5 -5 -4 -4 -4 -4 -3 -3 -3 ----------- Run | Scr Mat Min Mat Min Exi Min Mat Sto Gar Rec Fac Low Low Dat Pro Fac Fac Upp Upp Zhi Pro Res Qua Matter Collected 6618 | 285 582 249 1138 172 . 129 423 1366 641 289 120 64 99 22 83 107 100 95 159 . 84 198 213 Remotely . | . . . . . . . . . . . . . . . . . . . . . . . . Salvage Created 7018 | 121 921 232 1732 168 . 131 597 1208 385 535 . 32 70 22 13 107 100 . 42 . 80 198 324 Parts 447 | 8 60 8 123 12 . 13 33 99 22 29 . 3 . 3 1 2 5 . 1 . 2 6 17 Haulers Intercepted 12 | . 2 . 2 . . . . 5 . . . . . . . 1 . . . . . 1 1 Recyclers Shooed 6 | . 2 1 1 1 . . . . . . 1 . . . . . . . . . . . . Parts Field Recycled . | . . . . . . . . . . . . . . . . . . . . . . . . Retrieved Matter . | . . . . . . . . . . . . . . . . . . . . . . . . Parts Self-Destructed 5 | . . . . . . . . . . . . 3 . . 1 . . . . . 1 . . Prevented . | . . . . . . . . . . . . . . . . . . . . . . . . Kills | -11 -10 -10 -9 -9 -9 -8 -8 -8 -8 -8 -6 -6 -6 -6 -5 -5 -4 -4 -4 -4 -3 -3 -3 ------- Run | Scr Mat Min Mat Min Exi Min Mat Sto Gar Rec Fac Low Low Dat Pro Fac Fac Upp Upp Zhi Pro Res Qua Combat Hostiles Destroyed 145 | . 13 15 34 5 . 6 10 26 17 14 . 2 . . 1 . . . . . . 1 1 Melee 2 | . . . . . . . . . . . . . . . . . . . . . . 1 1 Guns 72 | . 9 10 22 5 . 3 10 12 . 1 . . . . . . . . . . . . . Cannons 34 | . 3 3 . . . . . 12 8 8 . . . . . . . . . . . . . AOE 37 | . 1 2 12 . . 3 . 2 9 5 . 2 . . 1 . . . . . . . . Classes Destroyed 15 | 2 7 1 2 . . . 1 . . 1 . . . . . . . . 1 . . . . Worker 9 | . 1 . 4 1 . 1 . 1 . . . . . . . 1 . . . . . . . Builder 7 | . 3 . 1 . . . . 3 . . . . . . . . . . . . . . . Tunneler 4 | 1 2 . . . . . . 1 . . . . . . . . . . . . . . . Hauler 12 | . 2 . 2 . . . . 5 . . . . . . . 1 . . . . . 1 1 Recycler 18 | 1 3 . 6 . . . . 2 . 4 . . . . . . 1 . . . . . 1 Operator 7 | . 3 . 2 . . . . 2 . . . . . . . . . . . . . . . Drone 14 | . . . . . . . . . . 14 . . . . . . . . . . . . . Watcher 9 | . 3 . 3 . . . 2 1 . . . . . . . . . . . . . . . Swarmer 44 | . 6 3 9 3 . 4 . 11 5 . . 2 . . 1 . . . . . . . . Grunt 47 | . 7 2 16 . . 2 3 6 11 . . . . . . . . . . . . . . Brawler 2 | . . . . . . . 1 . 1 . . . . . . . . . . . . . . Duelist 4 | . . . 1 . . . 3 . . . . . . . . . . . . . . . . Researcher 2 | . . . . . . . . . . . . . . . . . . . 1 . . . 1 Sentry 23 | . . . 8 2 . . 3 9 . . . . . . . . . . . . . 1 . Tracker 1 | . . . . . . . . . . . . . . . . . . . . . . . 1 Assembled 10 | . . 10 . . . . . . . . . . . . . . . . . . . . . Best Kill Streak 18 | 2 8 5 18 5 . 5 3 7 5 5 . 2 . 1 1 1 1 . . . . 1 2 Combat Bots Only 11 | . 4 5 11 4 . 4 3 5 5 5 . 2 . . 1 . . . . . . 1 1 Max Kills in Single Turn 4 | 1 2 2 3 1 . 2 1 2 4 2 . 2 . 1 1 1 1 . 1 . . 1 1 Gunslinging . | . . . . . . . . . . . . . . . . . . . . . . . . Exploded 4 | . 1 2 3 . . 2 . 2 4 2 . 2 . . 1 . . . . . . . . Melee 1 | . . . . . . . . . . . . . . . . . . . . . . 1 1 Uniques/NPCs Destroyed 1 | . . . . . . . . . . . . . . 1 . . . . . . . . . Data Miner (-6/Data Miner) Combat | -11 -10 -10 -9 -9 -9 -8 -8 -8 -8 -8 -6 -6 -6 -6 -5 -5 -4 -4 -4 -4 -3 -3 -3 -------- Run | Scr Mat Min Mat Min Exi Min Mat Sto Gar Rec Fac Low Low Dat Pro Fac Fac Upp Upp Zhi Pro Res Qua Damage Taken 8939 | 22 633 618 1802 162 . 335 663 1602 936 22 23 86 . 140 131 20 24 . . . . 494 1226 Core 1271 | . 67 116 254 23 . 92 64 178 130 . 23 . . 43 59 20 . . . . . 28 174 Absorbed by Shields 18 | . . . . . . . . 18 . . . . . . . . . . . . . . . Core Remaining (%) 64 | 100 . 26 . . . 7 . . . 32 . . . . 85 98 . . . . 100 . . Volleys Fired 658 | 5 103 44 136 19 . 9 48 98 37 46 1 1 . . 2 46 1 3 22 . 12 23 2 Largest 2 | 2 2 2 2 2 . 2 2 2 2 2 1 1 . . 1 1 1 1 1 . 1 1 1 Hottest 131 | 60 100 80 46 46 . 43 43 131 100 112 56 36 . . 36 98 98 98 98 . 98 113 113 Shots Fired 1137 | 10 187 86 256 38 . 14 96 189 63 85 1 1 . . 2 46 1 3 22 . 12 23 2 Gun 733 | 10 137 73 244 38 . 10 96 82 . 4 . . . . . 39 . . . . . . . Cannon 354 | . 48 11 . . . . . 105 58 76 1 . . . . 7 1 3 22 . 12 9 1 Launcher 42 | . . 2 12 . . 4 . 2 5 5 . 1 . . 2 . . . . . . 9 . Special 8 | . 2 . . . . . . . . . . . . . . . . . . . . 5 1 Kinetic 733 | 5 44 73 244 38 . 10 96 160 57 6 . . . . . . . . . . . . . Thermal 233 | . 121 11 . . . . . 6 1 . . . . . . 46 1 3 22 . 12 9 1 Explosive 33 | . . 2 12 . . 4 . 2 5 5 . 1 . . 2 . . . . . . . . Electromagnetic 132 | 5 22 . . . . . . 21 . 74 1 . . . . . . . . . . 9 . Robot Hit Streak 19 | 2 10 10 19 15 . 8 12 13 10 6 2 . . . . . . . . . . 2 3 Robot Miss Streak 10 | 2 6 5 5 2 . 1 3 3 4 10 . 1 . . 2 . . . . . . 1 . Penetration Max 1 | . . . . . . . . 1 1 . . . . . . . . . . . . . . Secondary Targets 6 | . . 1 3 1 . . 1 . . . . . . . . . . . . . . . . Max Gunslinging Chain 1 | . . 1 1 1 . . 1 . . . . . . . . . . . . . . . . Shots Hit Robots 689 | 5 111 52 182 22 . 8 68 130 43 33 1 . 2 1 . 7 1 . 2 . 1 9 11 Core Hits 335 | 2 42 24 88 8 . 11 29 63 29 19 . 3 . 1 3 2 1 . 1 . 1 3 5 Critical Hits 27 | . 1 1 2 1 . . . 10 8 1 . . . . . . . . . . 1 . 2 Critical Kills 11 | . . . 1 . . . . 4 3 . . . . . . . . . . . 1 . 2 Critical Parts Destroyed 15 | . 1 1 1 1 . . . 6 5 . . . . . . . . . . . . . . Melee Attacks 116 | . . . . . . . . . . . 1 4 2 7 10 21 12 1 2 . 2 29 25 Impact . | . . . . . . . . . . . . . . . . . . . . . . . . Slashing 111 | . . . . . . . . . . . 1 4 2 2 10 21 12 1 2 . 2 29 25 Piercing 5 | . . . . . . . . . . . . . . 5 . . . . . . . . . Sneak Attacks 11 | . . . . . . . . . . . . . . 1 . 2 1 . 2 . . 2 3 Combat Hostiles 1 | . . . . . . . . . . . . . . . . . . . . . . 1 . Follow-up Attacks . | . . . . . . . . . . . . . . . . . . . . . . . . Damage Inflicted 17046 | 91 1614 704 3086 301 . 561 984 2909 1854 1494 22 97 198 150 125 461 134 . 288 . 106 383 1484 Guns 5892 | 64 1012 414 2130 301 . 99 984 866 . 22 . . . . . . . . . . . . . Cannons 4757 | . 528 159 . . . . . 1890 1127 1031 22 . . . . . . . . . . . . Explosions 3193 | 27 74 131 956 . . 462 . 153 727 441 . 97 . . 125 . . . . . . . . Melee 3204 | . . . . . . . . . . . . . 198 150 . 461 134 . 288 . 106 383 1484 Ramming . | . . . . . . . . . . . . . . . . . . . . . . . . Kinetic 7631 | 24 300 414 2130 301 . 99 984 2272 1085 22 . . . . . . . . . . . . . Thermal 1677 | 27 1117 159 . . . . . 89 42 243 . . . . . . . . . . . . . Explosive 2849 | . . 131 956 . . 462 . 153 727 198 . 97 . . 125 . . . . . . . . Electromagnetic 1685 | 40 197 . . . . . . 395 . 1031 22 . . . . . . . . . . . . Impact . | . . . . . . . . . . . . . . . . . . . . . . . . Slashing 3054 | . . . . . . . . . . . . . 198 . . 461 134 . 288 . 106 383 1484 Piercing 150 | . . . . . . . . . . . . . . 150 . . . . . . . . . Highest Corruption 8 | . . 4 1 1 1 1 . 1 1 2 . . . . . . . . . . . . 8 Average Corruption 1 | . . 4 1 1 1 1 . 1 1 1 . . . . . . . . . . . . 3 Corruption Purged . | . . . . . . . . . . . . . . . . . . . . . . . . Effects 35 | . . 7 3 3 3 . . 2 6 11 . . . . . . . . . . . . . Message Errors 17 | . . 3 2 2 1 . . 2 4 3 . . . . . . . . . . . . . Matter Fused 1 | . . 1 . . . . . . . . . . . . . . . . . . . . . Heat Flow Errors 4 | . . 1 . . . . . . . 3 . . . . . . . . . . . . . Energy Discharges 3 | . . 1 . 1 . . . . . 1 . . . . . . . . . . . . . Data Loss (minor) 3 | . . . . . 2 . . . . 1 . . . . . . . . . . . . . Targeting Errors 5 | . . 1 1 . . . . . 2 1 . . . . . . . . . . . . . Weapon Failures 2 | . . . . . . . . . . 2 . . . . . . . . . . . . . Overload Shots . | . . . . . . . . . . . . . . . . . . . . . . . . Overflow Damage 873 | . 12 52 2 . . 1 . 67 26 118 . . 186 . . 111 . . 102 . . . 196 Projectiles 169 | . 12 . . . . . . 67 22 68 . . . . . . . . . . . . . Explosions 109 | . . 52 2 . . 1 . . 4 50 . . . . . . . . . . . . . Melee 595 | . . . . . . . . . . . . . 186 . . 111 . . 102 . . . 196 Knockbacks 20 | . . . . . . . . 6 14 . . . . . . . . . . . . . . Impact . | . . . . . . . . . . . . . . . . . . . . . . . . Kinetic 17 | . . . . . . . . 5 12 . . . . . . . . . . . . . . Secondary 3 | . . . . . . . . 1 2 . . . . . . . . . . . . . . Self-Inflicted Damage 323 | 23 35 43 22 . . 65 . . 56 23 . 48 . . . . . . . . . 8 . Shots 11 | 1 1 2 1 . . 2 . . 1 1 . 1 . . . . . . . . . 1 . Rammed . | . . . . . . . . . . . . . . . . . . . . . . . . Targets Rammed . | . . . . . . . . . . . . . . . . . . . . . . . . Kicked . | . . . . . . . . . . . . . . . . . . . . . . . . Crushed . | . . . . . . . . . . . . . . . . . . . . . . . . Highest Temperature 325 | 12 246 226 31 21 . 17 4 259 222 254 6 . . . 67 160 55 126 257 146 261 325 . Average Temperature 65 | 12 73 114 7 8 . 12 2 57 72 59 4 . . . 31 45 33 68 95 54 103 69 . Received Heat Transfer 2207 | . 174 131 567 54 . 81 261 495 360 . . 9 . 18 18 9 . . . . . 18 12 Effects 3 | . 1 . . . . . . . 1 . . . . . . . . . . . 1 . . Energy Bleed 1 | . . . . . . . . . . . . . . . . . . . . . 1 . . Interference 2 | . 1 . . . . . . . 1 . . . . . . . . . . . . . . Siege Activations . | . . . . . . . . . . . . . . . . . . . . . . . . Robots Corrupted . | . . . . . . . . . . . . . . . . . . . . . . . . Combat Hostiles . | . . . . . . . . . . . . . . . . . . . . . . . . Parts Fried 8 | . 1 . . . . . . 2 . 5 . . . . . . . . . . . . . Impact Corruptions . | . . . . . . . . . . . . . . . . . . . . . . . . Robots Melted . | . . . . . . . . . . . . . . . . . . . . . . . . Combat Hostiles . | . . . . . . . . . . . . . . . . . . . . . . . . Parts Melted 2 | . 2 . . . . . . . . . . . . . . . . . . . . . . Heat Transferred 3372 | 50 2491 333 . . . . . 148 50 300 . . . . . . . . . . . . . Parts Sabotaged . | . . . . . . . . . . . . . . . . . . . . . . . . Parts Stolen . | . . . . . . . . . . . . . . . . . . . . . . . . Parts Stripped . | . . . . . . . . . . . . . . . . . . . . . . . . Power Chain Reactions 7 | 1 1 . . . . . . . . 5 . . . . . . . . . . . . . Missiles Intercepted . | . . . . . . . . . . . . . . . . . . . . . . . . Alert | -11 -10 -10 -9 -9 -9 -8 -8 -8 -8 -8 -6 -6 -6 -6 -5 -5 -4 -4 -4 -4 -3 -3 -3 ------- Run | Scr Mat Min Mat Min Exi Min Mat Sto Gar Rec Fac Low Low Dat Pro Fac Fac Upp Upp Zhi Pro Res Qua Peak Influence 979 | 10 181 70 718 348 . 169 208 459 618 277 979 . . . . 121 140 . . . . 537 214 Initial 963 | . 6 10 . 264 . . 65 . 3 277 963 . . . . . 58 . . . . 3 2 Average 168 | 4 52 12 354 317 . 105 93 158 424 102 966 . . . . 31 73 . . . . 124 96 Maximum Alert Level 3 | . . . 3 1 . . 1 2 2 1 3 . . . . . . . . . . 2 1 Low Security (%) 70 | 100 100 100 28 . . 100 95 60 14 94 . . . . . 100 100 . . . . 79 98 Level 1 17 | . . . 44 100 . . 4 32 17 5 . . . . . . . . . . . . 1 Level 2 9 | . . . 16 . . . . 6 68 . . . . . . . . . . . . 20 . Level 3 2 | . . . 10 . . . . . . . 100 . . . . . . . . . . . . Level 4 . | . . . . . . . . . . . . . . . . . . . . . . . . Level 5 . | . . . . . . . . . . . . . . . . . . . . . . . . High Security . | . . . . . . . . . . . . . . . . . . . . . . . . Max Security . | . . . . . . . . . . . . . . . . . . . . . . . . Squads Dispatched 34 | . 4 . 4 . . . 3 5 . . . . . . . 3 2 . . . 1 5 7 Investigation 9 | . 1 . . . . . . 1 . . . . . . . 2 2 . . . 1 2 . Extermination 1 | . . . . . . . . . . . . . . . . . . . . . . 1 . Reinforcement 13 | . 3 . 4 . . . . 1 . . . . . . . 1 . . . . . . 4 Assault . | . . . . . . . . . . . . . . . . . . . . . . . . Garrison 6 | . . . . . . . 3 3 . . . . . . . . . . . . . . . Intercept 5 | . . . . . . . . . . . . . . . . . . . . . . 2 3 Construction Impeded 1 | . . . . . . . . 1 . . . . . . . . . . . . . . . Haulers Reinforced 1 | . . . . . . . . . . . . . . . . . . . . . . . 1 Stealth | -11 -10 -10 -9 -9 -9 -8 -8 -8 -8 -8 -6 -6 -6 -6 -5 -5 -4 -4 -4 -4 -3 -3 -3 --------- Run | Scr Mat Min Mat Min Exi Min Mat Sto Gar Rec Fac Low Low Dat Pro Fac Fac Upp Upp Zhi Pro Res Qua Distress Signals 17 | . 3 1 4 . . . 2 6 . . . . . . . . 1 . . . . . . Communications Jammed . | . . . . . . . . . . . . . . . . . . . . . . . . Distress Signals . | . . . . . . . . . . . . . . . . . . . . . . . . Times Spotted 309 | . 37 21 59 7 . 8 21 40 23 32 4 8 . 4 3 4 5 . . . . 19 14 Peak Tracking Total 10 | . 6 8 5 3 . 4 5 6 8 4 4 4 . 4 3 2 5 . . . . 10 9 Tactical Retreats 30 | . 3 4 3 2 . 2 2 3 1 . . 3 . . 2 2 . . . . . 2 1 Traps | -11 -10 -10 -9 -9 -9 -8 -8 -8 -8 -8 -6 -6 -6 -6 -5 -5 -4 -4 -4 -4 -3 -3 -3 ------- Run | Scr Mat Min Mat Min Exi Min Mat Sto Gar Rec Fac Low Low Dat Pro Fac Fac Upp Upp Zhi Pro Res Qua Traps Triggered 20 | . 1 . 1 . . . 1 9 6 . . . . . . . . . . . . 2 . Indirectly . | . . . . . . . . . . . . . . . . . . . . . . . . Trap Hack Attempts . | . . . . . . . . . . . . . . . . . . . . . . . . Triggered . | . . . . . . . . . . . . . . . . . . . . . . . . Disarmed . | . . . . . . . . . . . . . . . . . . . . . . . . Reprogrammed 8 | . . . . . . . . . . . . . . . . 4 . . . . . . 4 Reused 4 | . . . . . . . . . . . . . . . . . . . . . . . 4 Traps Extracted . | . . . . . . . . . . . . . . . . . . . . . . . . Installed . | . . . . . . . . . . . . . . . . . . . . . . . . Triggered 6 | . . . . . . . . . . . . . . . . . . . 2 . . . 4 Machines | -11 -10 -10 -9 -9 -9 -8 -8 -8 -8 -8 -6 -6 -6 -6 -5 -5 -4 -4 -4 -4 -3 -3 -3 ---------- Run | Scr Mat Min Mat Min Exi Min Mat Sto Gar Rec Fac Low Low Dat Pro Fac Fac Upp Upp Zhi Pro Res Qua Machines Disabled 25 | . 3 . 6 . . . . 3 3 3 . . . . 1 . 1 . . . . . 5 Max in Single Turn 3 | . 1 . 3 . . . . 1 1 2 . . . . 1 . 1 . . . . . 1 Garrison Access 2 | . . . . . . . . . . . . . . . . . . . . . . 1 1 Garrison Relay 2 | . . . . . . . . . 2 . . . . . . . . . . . . . . Machines Sabotaged . | . . . . . . . . . . . . . . . . . . . . . . . . Garrisons Compromised . | . . . . . . . . . . . . . . . . . . . . . . . . Overloaded Fab Kills . | . . . . . . . . . . . . . . . . . . . . . . . . Fab Network Shutdowns 1 | . . . . . . . . . . . . . . . . . . . . . . 1 . Hacking | -11 -10 -10 -9 -9 -9 -8 -8 -8 -8 -8 -6 -6 -6 -6 -5 -5 -4 -4 -4 -4 -3 -3 -3 --------- Run | Scr Mat Min Mat Min Exi Min Mat Sto Gar Rec Fac Low Low Dat Pro Fac Fac Upp Upp Zhi Pro Res Qua Machines Accessed 81 | . 5 . 6 . 2 . 3 12 . 9 1 . 1 4 . 10 8 1 . 4 1 9 5 Terminals 49 | . 5 . 4 . . . 1 10 . 5 1 . . . . 8 4 . . . 1 6 4 Fabricators 6 | . . . . . . . . . . . . . . . . 1 3 . . . . 2 . Repair Stations 3 | . . . 1 . . . 1 1 . . . . . . . . . . . . . . . Recycling Units 4 | . . . . . . . . . . 4 . . . . . . . . . . . . . Scanalyzers 3 | . . . 1 . . . 1 . . . . . . . . 1 . . . . . . . Garrison Access 4 | . . . . . . . . 1 . . . . . . . . 1 . . . . 1 1 Total Hacks 298 | . 19 . 20 . 5 . 9 48 . 30 4 . 1 27 . 36 40 1 . 13 5 28 12 Successful 207 | . 11 . 12 . 5 . 5 29 . 20 2 . 1 27 . 22 28 1 . 13 2 21 8 Failed 90 | . 8 . 8 . . . 4 19 . 10 2 . . . . 13 12 . . . 3 7 4 Catastrophic 13 | . . . 2 . . . . 4 . . . . . . . 4 1 . . . . 1 1 Database Lockouts 1 | . . . . . . . . . . . . . . . . 1 . . . . . . . Manual 159 | . 11 . 5 . . . 5 36 . 20 1 . . . 2 28 29 . . . 4 12 6 Terminals 186 | . 19 . 12 . . . 4 43 . 22 4 . . . . 30 21 . . . 5 16 10 Fabricators 29 | . . . . . . . . . . . . . . . . 4 15 . . . . 10 . Repair Stations 9 | . . . 4 . . . 3 2 . . . . . . . . . . . . . . . Recycling Units 8 | . . . . . . . . . . 8 . . . . . . . . . . . . . Scanalyzers 8 | . . . 4 . . . 2 . . . . . . . . 2 . . . . . . . Garrison Access 11 | . . . . . . . . 3 . . . . . . . . 4 . . . . 2 2 Terminal Hacks 119 | . 7 . 3 . 5 . 1 18 . 9 2 . 1 27 . 14 6 1 . 13 2 7 3 Record 24 | . . . . . 5 . . . . . . . . 11 . . . . . 5 1 2 . Part Schematic 28 | . . . . . . . . . . 3 1 . . 7 . 8 4 . . 4 1 . . Robot Schematic 9 | . 1 . . . . . . 2 . . . . . 6 . . . . . . . . . Robot Analysis 4 | . 2 . . . . . . 1 . 1 . . . . . . . . . . . . . Prototype ID Bank 11 | . 1 . 1 . . . . . . 2 . . . 3 . . . . . 4 . . . Open Door 5 | . . . . . . . . 2 . . . . 1 . . . . 1 . . . 1 . Level Access Points 2 | . . . . . . . . . . 1 . . . . . 1 . . . . . . . Branch Access Points 3 | . . . . . . . . . . . 1 . . . . . 1 . . . . . 1 Terminal Index 1 | . 1 . . . . . . . . . . . . . . . . . . . . . . Alert Level 3 | . . . 1 . . . . 2 . . . . . . . . . . . . . . . Unreport Threat 11 | . 1 . . . . . 1 3 . 2 . . . . . . 1 . . . . 3 . Locate Traps 6 | . . . . . . . . 4 . . . . . . . 1 . . . . . . 1 Reprogram Traps 2 | . . . . . . . . . . . . . . . . 1 . . . . . . 1 Recall Investigation 2 | . . . . . . . . 1 . . . . . . . 1 . . . . . . . Recall Extermination 1 | . . . . . . . . . . . . . . . . . . . . . . 1 . Hauler Manifests 2 | . 1 . . . . . . 1 . . . . . . . . . . . . . . . Zone Layout 5 | . . . 1 . . . . 2 . . . . . . . 2 . . . . . . . Fabricator Hacks 20 | . . . . . . . . . . . . . . . . 3 10 . . . . 7 . Load Schematic 9 | . . . . . . . . . . . . . . . . 1 5 . . . . 3 . Build 11 | . . . . . . . . . . . . . . . . 2 5 . . . . 4 . Repair Station Hacks 6 | . . . 4 . . . 2 . . . . . . . . . . . . . . . . Scan Component 3 | . . . 2 . . . 1 . . . . . . . . . . . . . . . . Repair 3 | . . . 2 . . . 1 . . . . . . . . . . . . . . . . Recycling Unit Hacks 3 | . . . . . . . . . . 3 . . . . . . . . . . . . . Retrieve Components 3 | . . . . . . . . . . 3 . . . . . . . . . . . . . Scanalyzer 7 | . . . 4 . . . 2 . . . . . . . . 1 . . . . . . . Insert Component 4 | . . . 2 . . . 1 . . . . . . . . 1 . . . . . . . Analyze 3 | . . . 2 . . . 1 . . . . . . . . . . . . . . . . Garrison Access Hacks 6 | . . . . . . . . 1 . . . . . . . . 1 . . . . 2 2 Unlock Access 1 | . . . . . . . . 1 . . . . . . . . . . . . . . . Seal Access 2 | . . . . . . . . . . . . . . . . . . . . . . 1 1 Coupler Status 3 | . . . . . . . . . . . . . . . . . 1 . . . . 1 1 Unauthorized Hacks 46 | . 4 . 1 . . . . 10 . 8 . . . . . 4 11 . . . . 5 3 Terminals 32 | . 4 . 1 . . . . 10 . 4 . . . . . 3 5 . . . . 2 3 Track 11 | . . . 1 . . . . 6 . . . . . . . 1 1 . . . . 1 1 Assimilate 6 | . 1 . . . . . . . . . . . . . . 2 1 . . . . . 2 Botnet 12 | . 2 . . . . . . 4 . 4 . . . . . . 1 . . . . 1 . Detonate 1 | . . . . . . . . . . . . . . . . . 1 . . . . . . Disrupt 1 | . . . . . . . . . . . . . . . . . 1 . . . . . . Operators 1 | . 1 . . . . . . . . . . . . . . . . . . . . . . Fabricators 7 | . . . . . . . . . . . . . . . . 1 3 . . . . 3 . Prioritize 4 | . . . . . . . . . . . . . . . . 1 1 . . . . 2 . Siphon 3 | . . . . . . . . . . . . . . . . . 2 . . . . 1 . Repair Stations . | . . . . . . . . . . . . . . . . . . . . . . . . Recycling Units 4 | . . . . . . . . . . 4 . . . . . . . . . . . . . Tunnel 4 | . . . . . . . . . . 4 . . . . . . . . . . . . . Scanalyzers . | . . . . . . . . . . . . . . . . . . . . . . . . Garrison Access 3 | . . . . . . . . . . . . . . . . . 3 . . . . . . Restock 1 | . . . . . . . . . . . . . . . . . 1 . . . . . . Reprogram 1 | . . . . . . . . . . . . . . . . . 1 . . . . . . Eject 1 | . . . . . . . . . . . . . . . . . 1 . . . . . . Data Cores Recovered . | . . . . . . . . . . . . . . . . . . . . . . . . Used . | . . . . . . . . . . . . . . . . . . . . . . . . Hacking Detections 62 | . 5 . 6 . . . 3 12 . 6 1 . . . . 8 8 . . . 1 8 4 Full Trace Events 14 | . . . . . . . . 3 . 5 . . . . . 2 1 . . . 1 2 . Feedback Events 2 | . . . . . . . . . . 1 . . . . . . . . . . 1 . . Corruption 1 | . . . . . . . . . . 1 . . . . . . . . . . . . . Hackware Fried 1 | . . . . . . . . . . . . . . . . . . . . . 1 . . Feedback Blocked . | . . . . . . . . . . . . . . . . . . . . . . . . Robot Schematics Acquired 9 | . 1 . . . . . . 2 . . . . . 6 . . . . . . . . . Robots Built 1 | . . . . . . . . . . . . . . . . . . . . . . 1 . Matter 114 | . . . . . . . . . . . . . . . . . . . . . . 114 . Time 40 | . . . . . . . . . . . . . . . . . . . . . . 40 . Total Robot Build Rating 1 | . . . . . . . . . . . . . . . . . . . . . . 1 . Part Schematics Acquired 31 | . . . 2 . . . 1 . . 3 1 . . 7 . 8 4 . . 4 1 . . Parts Built 9 | . . . . . . . . . . . . . . . . 2 4 . . . . 3 . Matter 2247 | . . . . . . . . . . . . . . . . 563 924 . . . . 760 . Time 623 | . . . . . . . . . . . . . . . . 215 164 . . . . 244 . Total Part Build Rating 55 | . . . . . . . . . . . . . . . . 14 20 . . . . 21 . Parts Repaired 3 | . . . 2 . . . 1 . . . . . . . . . . . . . . . . Time 78 | . . . 52 . . . 26 . . . . . . . . . . . . . . . . Parts Recycled . | . . . . . . . . . . . . . . . . . . . . . . . . Recycled Matter . | . . . . . . . . . . . . . . . . . . . . . . . . Retrieved Matter . | . . . . . . . . . . . . . . . . . . . . . . . . Retrieved Components 18 | . . . . . . . . . . 18 . . . . . . . . . . . . . Parts Scanalyzed 3 | . . . 2 . . . 1 . . . . . . . . . . . . . . . . Part Schematics Acquired 3 | . . . 2 . . . 1 . . . . . . . . . . . . . . . . Parts Damaged . | . . . . . . . . . . . . . . . . . . . . . . . . Bothacking | -11 -10 -10 -9 -9 -9 -8 -8 -8 -8 -8 -6 -6 -6 -6 -5 -5 -4 -4 -4 -4 -3 -3 -3 ------------ Run | Scr Mat Min Mat Min Exi Min Mat Sto Gar Rec Fac Low Low Dat Pro Fac Fac Upp Upp Zhi Pro Res Qua Used RIF Installer 1 | . . . . . . . . . 1 . . . . . . . . . . . . . . Robots Hacked 4 | . . . . . . . . . . . . . . . . . . . . . . 3 1 Non-combat . | . . . . . . . . . . . . . . . . . . . . . . . . Combat 4 | . . . . . . . . . . . . . . . . . . . . . . 3 1 Robot Hacks Applied 5 | . . . . . . . . . . . . . . . . . . . . . . 4 1 locate_prototypes 1 | . . . . . . . . . . . . . . . . . . . . . . . 1 mark_system 1 | . . . . . . . . . . . . . . . . . . . . . . 1 . wipe_record 1 | . . . . . . . . . . . . . . . . . . . . . . 1 . overwrite_iff 2 | . . . . . . . . . . . . . . . . . . . . . . 2 . Relay Couplers Released 14 | . . . . . . . . . 7 . . . . . . . 4 . . . . 3 . Ejected 4 | . . . . . . . . . . . . . . . . . 4 . . . . . . Machine Destruction 10 | . . . . . . . . . 7 . . . . . . . . . . . . 3 . Attached 6 | . . . . . . . . . . . 3 . . . . . 1 . . . . 1 1 Robots Rewired . | . . . . . . . . . . . . . . . . . . . . . . . . Allies Hacked . | . . . . . . . . . . . . . . . . . . . . . . . . Hacks Repelled . | . . . . . . . . . . . . . . . . . . . . . . . . Allies | -11 -10 -10 -9 -9 -9 -8 -8 -8 -8 -8 -6 -6 -6 -6 -5 -5 -4 -4 -4 -4 -3 -3 -3 -------- Run | Scr Mat Min Mat Min Exi Min Mat Sto Gar Rec Fac Low Low Dat Pro Fac Fac Upp Upp Zhi Pro Res Qua Total Allies 11 | . 1 . . 2 . . . 2 . . . . . . . 1 1 . . . . 3 1 Largest Group 2 | . 1 1 . 2 . . . 2 2 . . . . . . 1 2 1 . . . 2 1 Highest-Rated Group 128 | . 10 10 . 45 . . . 120 120 . . . . . . 10 20 10 . . . 128 23 Highest-Rated Ally 99 | . 10 10 . 31 . . . 99 99 . . . . . . 10 10 10 . . . 64 23 Total Orders 2 | . . . . . . . . . . . . . . . . . 2 . . . . . . STAY 1 | . . . . . . . . . . . . . . . . . 1 . . . . . . FOLLOW 1 | . . . . . . . . . . . . . . . . . 1 . . . . . . Ally Attacks 24 | . . . . 5 . . . 4 9 . . . . . . . . . . . . 6 . Total Damage 601 | . . . . 63 . . . 72 195 . . . . . . . . . . . . 271 . Kills 7 | . . . . . . . . 2 4 . . . . . . . . . . . . 1 . Allies Corrupted . | . . . . . . . . . . . . . . . . . . . . . . . . Allies Melted . | . . . . . . . . . . . . . . . . . . . . . . . . Intel | -11 -10 -10 -9 -9 -9 -8 -8 -8 -8 -8 -6 -6 -6 -6 -5 -5 -4 -4 -4 -4 -3 -3 -3 ------- Run | Scr Mat Min Mat Min Exi Min Mat Sto Gar Rec Fac Low Low Dat Pro Fac Fac Upp Upp Zhi Pro Res Qua Robot Analysis Total 119 | . 2 . . . . . . 1 . 1 . . . 115 . . . . . . . . . Derelict Logs Recovered 7 | . . 3 . . . . . . . . . 1 1 . . . . 1 1 . . . . Drone Launches . | . . . . . . . . . . . . . . . . . . . . . . . . Drone Recoveries . | . . . . . . . . . . . . . . . . . . . . . . . . Exploration | -11 -10 -10 -9 -9 -9 -8 -8 -8 -8 -8 -6 -6 -6 -6 -5 -5 -4 -4 -4 -4 -3 -3 -3 ------------- Run | Scr Mat Min Mat Min Exi Min Mat Sto Gar Rec Fac Low Low Dat Pro Fac Fac Upp Upp Zhi Pro Res Qua Turns Passed 15997 | 109 1911 1230 1871 326 858 121 846 2440 906 1057 140 453 355 150 465 557 388 157 668 130 179 426 254 Spaces Moved 11208 | 55 912 725 711 131 427 44 315 968 397 474 164 803 653 168 759 544 660 260 477 157 365 712 327 Core 8 | 7 . . . . . . . . . . . . . . . . . . . . . . 1 Treads 4134 | 48 570 135 625 131 427 44 315 968 397 474 . . . . . . . . . . . . . Legs 384 | . . 384 . . . . . . . . . . . . . . . . . . . . . Wheels 634 | . 342 206 86 . . . . . . . . . . . . . . . . . . . . Hover . | . . . . . . . . . . . . . . . . . . . . . . . . Flight 6048 | . . . . . . . . . . . 164 803 653 168 759 544 660 260 477 157 365 712 326 Fastest Speed 14 | 50 120 110 120 200 200 200 200 180 185 190 26 32 26 26 14 14 19 26 22 22 22 20 26 Average Speed 97 | 146 157 147 188 200 200 200 200 200 187 190 31 32 29 26 26 25 25 26 25 25 22 24 32 Slowest Speed 950 | 160 200 210 200 200 200 200 220 220 205 190 32 97 32 26 29 26 26 26 26 94 22 94 950 Overloaded Moves 141 | . . . . . . . . . . . . . . . 10 6 10 . . . . 109 6 Propulsion Burnouts . | . . . . . . . . . . . . . . . . . . . . . . . . Robots Hopped 8 | . . . . . . . . . . . . . . . . 1 2 . . . . 3 2 Cave-ins Triggered . | . . . . . . . . . . . . . . . . . . . . . . . . Teleports 1 | . . . . . . . . . . . . . . . . . . . . . . 1 . Exploration Rate (%) 56 | 4 98 99 59 23 88 16 27 92 75 97 5 95 75 78 84 20 15 45 76 62 58 25 36 Regions Visited 23 Branch Regions 15 Pre-discovered Areas 31 | . . 2 . . 1 . . . . 4 . . . 19 . . . 1 1 3 . . . Known Exits Taken 15 | . . . . . . . 1 1 . 1 1 1 1 1 1 1 1 1 1 1 1 1 . Unknown Exits Taken 7 | 1 1 1 1 1 1 1 . . . . . . . . . . . . . . . . . Scrap Searched 17 | . . 1 . . . . . . . . . 1 6 . 3 . . 4 . . 2 . . Spaces Dug 179 | . 1 20 4 . . 33 . 5 . 23 1 4 . . 8 18 8 2 17 . 6 21 8 Terrain Destroyed 389 | 3 7 20 49 . . 38 . 51 10 68 1 19 . . 14 31 9 4 22 . 13 22 8 Melee 64 | . . . . . . . . . . . 1 4 . . 8 14 8 1 . . 1 19 8 Projectile 92 | . 1 . . . . . . 31 1 1 . . . . . 17 1 3 22 . 12 3 . AOE 233 | 3 6 20 49 . . 38 . 20 9 67 . 15 . . 6 . . . . . . . . Terrain Rammed . | . . . . . . . . . . . . . . . . . . . . . . . . Walls Destroyed . | . . . . . . . . . . . . . . . . . . . . . . . . Machines Disabled . | . . . . . . . . . . . . . . . . . . . . . . . . Actions | -11 -10 -10 -9 -9 -9 -8 -8 -8 -8 -8 -6 -6 -6 -6 -5 -5 -4 -4 -4 -4 -3 -3 -3 --------- Run | Scr Mat Min Mat Min Exi Min Mat Sto Gar Rec Fac Low Low Dat Pro Fac Fac Upp Upp Zhi Pro Res Qua Total 14973 | 70 1203 814 1039 162 431 62 435 1292 494 543 260 991 808 266 1007 882 859 344 996 249 443 900 423 Wait 2278 | . 145 18 106 1 . . 34 87 20 1 47 174 139 74 206 236 151 75 492 81 49 95 47 Move 11168 | 54 911 724 710 130 426 43 314 967 395 473 163 802 652 167 758 541 655 259 476 156 364 705 323 Hop 8 | . . . . . . . . . . . . . . . . 1 2 . . . . 3 2 Pick Up 181 | 4 20 4 31 2 3 2 17 27 8 3 5 1 3 7 10 5 9 2 . 4 2 9 3 Fast Attach 93 | 7 4 4 6 3 . 1 4 16 3 5 5 1 3 2 3 1 8 1 2 3 1 4 6 Attach 79 | . 3 1 12 1 . . 6 10 4 . 11 3 . 2 4 6 4 . 1 . 1 8 2 Detach 22 | . 1 . 1 . . . . 2 . . 2 3 . . . 5 1 . . . . 2 5 Swap 136 | . 6 8 18 1 2 4 4 31 9 6 . 1 4 . 2 13 4 1 . . 10 9 3 Drop 213 | . 10 11 19 5 . 3 8 45 6 8 25 1 5 9 12 7 12 2 1 5 2 13 4 Fire 658 | 5 103 44 136 19 . 9 48 98 37 46 1 1 . . 2 46 1 3 22 . 12 23 2 Melee 114 | . . . . . . . . . . . 1 4 2 5 10 21 12 1 2 . 2 29 25 Ram . | . . . . . . . . . . . . . . . . . . . . . . . . Kick . | . . . . . . . . . . . . . . . . . . . . . . . . Crush . | . . . . . . . . . . . . . . . . . . . . . . . . Escape Stasis 22 | . . . . . . . . 9 12 . . . . . . . . . . . . . 1 Rewire 1 | . . . . . . . . . . 1 . . . . . . . . . . . . . Trap . | . . . . . . . . . . . . . . . . . . . . . . . . Miscellaneous . | . . . . . . . . . . . . . . . . . . . . . . . . Route ------- -11/Scrapyard -10/Materials (discovered 4 exits: *Mat x3 / [*Min]) -10/Mines (discovered 2 exits: *Mat x2) -9/Materials (discovered 3 exits: *Mat x2 / [*Min]) -9/Mines (discovered 3 exits: *Mat / *Exi / [*Zio]) -9/Exiles (discovered 2 exits: [*Min x2]) -8/Mines -8/Materials (discovered 2 exits: [*Fac] / *Sto) -8/Storage (discovered 2 exits: [*Fac] / Gar) -8/Garrison (discovered 3 exits: *Rec x3) -8/Recycling -6/Factory (discovered 2 exits: *Low x2) -6/Lower Caves -6/Lower Caves (discovered 2 exits: *Fac / *Dat) -6/Data Miner -5/Proximity Caves -5/Factory (discovered 4 exits: *Fac x4) -4/Factory (discovered 3 exits: Res / *Upp x2) -4/Upper Caves -4/Upper Caves (discovered 2 exits: Res / *Zhi) -4/Zhirov -3/Proximity Caves -3/Research (discovered 2 exits: [*Arm] / *Qua) -3/Quarantine (discovered 1 exit: [*Res]) History --------- Turn | Location | Event 22 | -11/Scrapyard | Discovered new exit (range 15) 110 | -11/Scrapyard | Entered Materials 308 | -10/Materials | Build established: Mutant 323 | -10/Materials | Discovered new exit (range 15) 453 | -10/Materials | Lost 3 parts (1p2w) 909 | -10/Materials | Discovered new exit (range 15) 1048 | -10/Materials | Discovered new exit (range 6) 1705 | -10/Materials | Discovered new exit (range 7) 2021 | -10/Materials | Entered Mines 2021 | -10/Mines | Accompanied by 1 ally 2025 | -10/Mines | Met a Derelict bent on vengeance 2046 | -10/Mines | Assembled infested the area 2051 | -10/Mines | Assisted by a Guerilla fighting off Assembled 2091 | -10/Mines | Core integrity fell below 50% 2403 | -10/Mines | Learned location of Mines (-8) 2623 | -10/Mines | Discovered new exit (range 5) 2665 | -10/Mines | Build established: Scavenger-Mutant 2791 | -10/Mines | Discovered new exit (range 8) 2868 | -10/Mines | A weapon hastily lodged in a ceiling crevice suddenly fell to the ground 3093 | -10/Mines | Learned location of Storage (-8) 3251 | -10/Mines | Entered Materials 3251 | -9/Materials | Evolved 2 slots: Utility x2 3500 | -9/Materials | Lost 4 parts (1p3w) 3931 | -9/Materials | Discovered new exit (range 10) 3984 | -9/Materials | Repaired Lgt. Armor Plating 4005 | -9/Materials | Build established: Hauler-Mutant 4046 | -9/Materials | Repaired Lgt. Treads 4639 | -9/Materials | Core integrity fell below 50% 4672 | -9/Materials | Discovered new exit (range 16) 4676 | -9/Materials | Destroyed 11 combat bots 4989 | -9/Materials | Discovered new exit (range 12) 5122 | -9/Materials | Entered Mines 5337 | -9/Mines | A Derelict revealed a hidden shortcut to a safe place 5358 | -9/Mines | Discovered new exit (range 7) 5438 | -9/Mines | Deemed a non-threat by the Exiles lab entrance 5440 | -9/Mines | Discovered new exit (range 5) 5448 | -9/Mines | Entered Exiles 5474 | -9/Exiles | Discovered new exit (range 15) 5509 | -9/Exiles | Met 8R-AWN 5537 | -9/Exiles | Met EX-HEX 5660 | -9/Exiles | Met EX-DEC 5697 | -9/Exiles | Visited The Gauntlet 5898 | -9/Exiles | Learned location of Zion (-7) 6036 | -9/Exiles | Met EX-BIN 6288 | -9/Exiles | Discovered new exit (range 10) 6306 | -9/Exiles | Entered Mines 6309 | -8/Mines | Core integrity fell below 20% 6421 | -8/Mines | Discovered new exit (range 4) 6427 | -8/Mines | Entered Materials 6427 | -8/Materials | Evolved 2 slots: Propulsion x1, Utility x1 6428 | -8/Materials | Identified exit to Storage 6559 | -8/Materials | Repaired Lgt. Treads 6937 | -8/Materials | Discovered new exit (range 8) 7040 | -8/Materials | Garrison activated, responded to threat 7273 | -8/Materials | Entered Storage 7581 | -8/Storage | Garrison activated, responded to threat 7647 | -8/Storage | Lost 3 parts (1p2w) 7724 | -8/Storage | Found Prototype Launcher 7724 | -8/Storage | Identified Scatter Rocket Array 8690 | -8/Storage | Discovered new exit (range 16) 9070 | -8/Storage | Met 01-MTF 9169 | -8/Storage | Identified exit to Garrison 9713 | -8/Storage | Entered Garrison 9713 | -8/Garrison | Accompanied by 2 allies (01-MTF) 9718 | -8/Garrison | 01-MTF left 9816 | -8/Garrison | Triggered checkpoint 9824 | -8/Garrison | Triggered checkpoint 9835 | -8/Garrison | Core integrity fell below 50% 9891 | -8/Garrison | Lost 3 parts (1p1u1w) 9980 | -8/Garrison | Triggered checkpoint 10021 | -8/Garrison | Discovered new exit (range 9) 10132 | -8/Garrison | Discovered new exit (range 12) 10165 | -8/Garrison | Installed Relay Interface Framework 10212 | -8/Garrison | Triggered checkpoint 10284 | -8/Garrison | Garrison Relay disabled 10474 | -8/Garrison | Triggered checkpoint 10585 | -8/Garrison | Discovered new exit (range 12) 10619 | -8/Garrison | Entered Recycling 10660 | -8/Recycling | Spotter reported a threat 10662 | -8/Recycling | Spotter reported a threat 10692 | -8/Recycling | Identified exit to Factory 10721 | -8/Recycling | Spotter reported a threat 10754 | -8/Recycling | Spotter reported a threat 10907 | -8/Recycling | Spotter reported a threat 10915 | -8/Recycling | Spotter reported a threat 10928 | -8/Recycling | Spotter reported a threat 10929 | -8/Recycling | Spotter reported a threat 10938 | -8/Recycling | Spotter reported a threat 10968 | -8/Recycling | Spotter reported a threat 10977 | -8/Recycling | Spotter reported a threat 10990 | -8/Recycling | Spotter reported a threat 10991 | -8/Recycling | Spotter reported a threat 11016 | -8/Recycling | Spotter reported a threat 11124 | -8/Recycling | Spotter reported a threat 11136 | -8/Recycling | Spotter reported a threat 11142 | -8/Recycling | Spotter reported a threat 11150 | -8/Recycling | Spotter reported a threat 11159 | -8/Recycling | Spotter reported a threat 11170 | -8/Recycling | Spotter reported a threat 11170 | -8/Recycling | Spotter reported a threat 11170 | -8/Recycling | Spotter reported a threat 11223 | -8/Recycling | Spotter reported a threat 11295 | -8/Recycling | Spotter reported a threat 11308 | -8/Recycling | Spotter reported a threat 11361 | -8/Recycling | Spotter reported a threat 11389 | -8/Recycling | Spotter reported a threat 11432 | -8/Recycling | Spotter reported a threat 11433 | -8/Recycling | Spotter reported a threat 11496 | -8/Recycling | Spotter reported a threat 11542 | -8/Recycling | Spotter reported a threat 11550 | -8/Recycling | Spotter reported a threat 11597 | -8/Recycling | Spotter reported a threat 11615 | -8/Recycling | Spotter reported a threat 11617 | -8/Recycling | Spotter reported a threat 11639 | -8/Recycling | Spotter reported a threat 11650 | -8/Recycling | Spotter reported a threat 11676 | -8/Recycling | Entered Factory 11676 | -6/Factory | Evolved 4 slots: Propulsion x1, Utility x3 11750 | -6/Factory | Identified exit to Lower Caves 11816 | -6/Factory | Entered Lower Caves 11940 | -6/Lower Caves | Ambushed by wild Derelicts 11959 | -6/Lower Caves | Learned Factory security intel 12168 | -6/Lower Caves | Build established: Hacker-Scout 12224 | -6/Lower Caves | Discovered new exit (range 20) 12267 | -6/Lower Caves | Identified exit to Lower Caves 12269 | -6/Lower Caves | Entered another Lower Caves area 12269 | -6/Lower Caves | Discovered new exit (range 7) 12271 | -6/Lower Caves | Identified exit to Factory 12306 | -6/Lower Caves | Learned 12 Factory zone layouts 12482 | -6/Lower Caves | Discovered new exit (range 8) 12624 | -6/Lower Caves | Identified exit to Data Miner 12624 | -6/Lower Caves | Entered Data Miner 12624 | -6/Data Miner | Discovered new exit (range 6) 12629 | -6/Data Miner | Met Data Miner 12634 | -6/Data Miner | Learned location of Section 7 (-3) 12634 | -6/Data Miner | Acquired the access code to Warlord's prototype stash 12638 | -6/Data Miner | Received God Mode back door access code from Data Miner 12645 | -6/Data Miner | Identified exit to Proximity Caves 12731 | -6/Data Miner | Destroyed Data Miner 12735 | -6/Data Miner | Found Prototype Hackware 12736 | -6/Data Miner | Interfaced with the Data Conduit 12774 | -6/Data Miner | Entered Proximity Caves 12901 | -5/Proximity Caves | Acquired the password to a Derelict Tinkerer's latest research 12905 | -5/Proximity Caves | Found Prototype Special Weapon 12905 | -5/Proximity Caves | Identified Molecular Deconstructor 13217 | -5/Proximity Caves | Discovered exit to Factory (range 5) 13239 | -5/Proximity Caves | Entered Factory 13239 | -5/Factory | Evolved 2 slots: Power x1, Utility x1 13242 | -5/Factory | Loaded intel: 272 machine locations 13268 | -5/Factory | Identified Deep Network Scanner 13523 | -5/Factory | Fabricated Adv. Phase Shifter (x1) 13601 | -5/Factory | Fabricated Exp. Sensor Array (x1) 13701 | -5/Factory | Identified exit to Factory 13785 | -5/Factory | Central database locked down 13796 | -5/Factory | Entered another Factory area 13796 | -4/Factory | Accompanied by 1 ally 13796 | -4/Factory | Evolved 2 slots: Propulsion x1, Utility x1 13797 | -4/Factory | Loaded intel: 256 machine locations 13837 | -4/Factory | Identified exit to Upper Caves 13886 | -4/Factory | Fabricated Exp. Signal Interpreter (x1) 13926 | -4/Factory | Fabricated Exp. Terrain Scan Processor (x1) 13966 | -4/Factory | Fabricated Exp. Terrain Scanner (x1) 13991 | -4/Factory | Found Com. Tesla Bomb Launcher 13994 | -4/Factory | Discovered new exit (range 29) 14104 | -4/Factory | Fabricated Exp. Propulsion Shielding? 14184 | -4/Factory | Entered Upper Caves 14184 | -4/Upper Caves | Accompanied by 1 ally 14215 | -4/Upper Caves | Encountered a Warlord checkpoint 14309 | -4/Upper Caves | Discovered new exit (range 30) 14341 | -4/Upper Caves | Identified exit to Upper Caves 14341 | -4/Upper Caves | Entered another Upper Caves area 14341 | -4/Upper Caves | Accompanied by 1 ally 14344 | -4/Upper Caves | Discovered new exit (range 21) 14925 | -4/Upper Caves | Discovered new exit (range 27) 14948 | -4/Upper Caves | Found Alien Artifact 14948 | -4/Upper Caves | Identified Core Expander 14948 | -4/Upper Caves | Installed Core Expander, added new Propulsion slot 15009 | -4/Upper Caves | Identified exit to Zhirov 15009 | -4/Upper Caves | Entered Zhirov 15009 | -4/Zhirov | Discovered new exit (range 3) 15038 | -4/Zhirov | Found Alien Artifact 15038 | -4/Zhirov | Identified Integrated Reactor 15038 | -4/Zhirov | Installed Integrated Reactor, increased core energy generation (+10) 15075 | -4/Zhirov | Found Alien Artifact 15113 | -4/Zhirov | Identified exit to Proximity Caves 15139 | -4/Zhirov | Entered Proximity Caves 15145 | -3/Proximity Caves | Mak. Hacking Suite fried by hacking feedback 15267 | -3/Proximity Caves | Discovered new exit (range 27) 15309 | -3/Proximity Caves | Identified exit to Research 15318 | -3/Proximity Caves | Entered Research 15318 | -3/Research | Evolved 2 slots: Utility x2 15319 | -3/Research | Loaded intel: 105 machine locations 15484 | -3/Research | Fabricated Mni. Fusion Reactor? 15555 | -3/Research | Fabricated O-16 Technician? 15628 | -3/Research | Local fabrication network quarantined 15642 | -3/Research | Fabricated Nanoactuators? 15664 | -3/Research | Discovered new exit (range 25) 15671 | -3/Research | Discovered new exit (range 16) 15674 | -3/Research | Intercept squad dispatched 15675 | -3/Research | Spotted Tracker 15676 | -3/Research | Identified Transdimensional Reconstructor 15676 | -3/Research | Warped through subspace 15717 | -3/Research | Identified exit to Quarantine 15735 | -3/Research | Spotted Tracker 15744 | -3/Research | Entered Quarantine 15745 | -3/Quarantine | Loaded intel: 72 machine locations 15751 | -3/Quarantine | Found Alien Energy Cannon 15751 | -3/Quarantine | Identified Core Cannon 15768 | -3/Quarantine | Found Sigix Broadsword 15862 | -3/Quarantine | Found Subatomic Replicator 15883 | -3/Quarantine | Discovered new exit (range 26) 15962 | -3/Quarantine | Intercept squad dispatched 15968 | -3/Quarantine | Spotted Tracker 15968 | -3/Quarantine | Spotted Tracker 15979 | -3/Quarantine | Scanned by Researcher 15983 | -3/Quarantine | Spotted Combat Programmer 15986 | -3/Quarantine | Destroyed Tracker 15988 | -3/Quarantine | Spotted Combat Programmer 15998 | -3/Quarantine | Self-destructed Last Messages --------------- 15986_ Tracker destroyed. 15986_ Penetrated by EMDS Slug. 15988_ K-01 Serf collects debris. 15989_ EMDS Slug penetrates Suspension Chamber. 15989_ Suspension Chamber breached. 15989_ Penetrated by EMDS Slug. 15989_ Sigix Broadsword destroyed. 15991_ K-01 Serf collects debris. 15991_ Penetrated by EMDS Slug. 15991_ Imp. Medium Armor Plating destroyed. 15993_ Penetrated by EMDS Slug. 15993_ Q-thruster destroyed. 15993_ Adv. Melee Analysis Suite destroyed. 15994_ K-01 Serf collects debris. 15996_ EMDS Slug penetrates Wall. 15996_ Penetrated by EMDS Slug. 15996_ Mni. Fusion Reactor destroyed. 15998_ Penetrated by EMDS Slug. 15998_ Q-thruster destroyed. 15998_ K-01 Serf collects debris. Map ----- +----------------------------------------------------+ | ?#?###? ####### ######### ] # | | ??############+#########+#################+######+ | | ?? ? | | | | | | ? = | | #####################+################ ##########+ | | ############ #########""" # ##### % | | " ############ #########""" # ##### """ | | " ##?######### #########""! # ##### """ | | " ## # """ #########""" + + """ | | ## # "!" #########""" # ### | | ## """"" # """ ############### ### """ | | ## "" " # "" " ############### ###! """ | | ## """ # """"" ############### ### """ | | ## "!" # ############### ###| | | ## """ ################## ########+ | | ## ##### ##### ^ ######## | | +########+######### """ ##### o""" "" ######## | | # ""&" ##### """ """# # | | + """" ##### ^""" "# # | | # T ##### ^ """# "" # | | ################# # """" #####*g""" "" # "" # | | ################# # ""& p##### g""" # """" # | | ##### ### # =!""k!##### """ # ""!" # | | ##### " ### # =s%!@p##### # """" + | | # T " " ### ########[#####g # # | | " # """ + k ! # # | | "" # """ """ ##############" ###### # # | | "" # "" ##############"T###### # + | | "" # ############################ ## | | " # ############################ ## | | "" #####+######################################## | | "" #### ################################# | | "" #### ##### ################################# | | " #### ##### ################################# | | #### ##### ################################# | | #### ##### ################################# | | #### ##### ################################# | | ######## ##### ####### ################# | | ##### ####### ################# | | ##### ####### """"" ################# | | ##### ####### ""c " ################# | | #######+########+####### """ #### | | ###### [ = ##### "!" ####+######## | | ###### ##### """ # ### | | ###### = ##### # ### | | ###### """""" ] #########+##### ####### | | # ## """""" !## ## ####### | | # ## """""" ## ################## | +----------------------------------------------------+ Best States ------------- Heat Dissipation 62 Energy Generation 53 Energy Capacity 900 Matter Stores 300 Matter Capacity 300 Sight Range 22 Robot Scan Range 30 Terrain Scan Range 30 Terrain Scan Density 1010 Jamming Range 12 Additional Mass Support 9 Armor Coverage 225 Propulsion Shielding 90 Evasion (%) 65 Targeting Accuracy 8 Melee Accuracy 13 Recoil Reduction 3 Offensive Hacking 47 Defensive Hacking 26 Relay Coupler Types 63 Relay Coupler Value 3 Item Schematics ----------------- Cmb. Airjet | -9/Materials | Scanalyzed Lrg. Storage Unit | -9/Materials | Scanalyzed Lgt. Fission Core | -8/Materials | Scanalyzed Hcp. Storage Unit | -8/Recycling | Hacked Remote Datajack | -8/Recycling | Hacked Hacking Suite | -8/Recycling | Hacked Mni. Drone Bay | -6/Factory | Hacked Combat Drone Bay | -6/Data Miner | Free Lgt. Regenerative Plating | -6/Data Miner | Free Cmb. Gravmag System | -6/Data Miner | Free Triangulator | -6/Data Miner | Free Tactical Coordination Suite | -6/Data Miner | Free Cloaking Device | -6/Data Miner | Free Mni. Smartbomb Launcher | -6/Data Miner | Free Exp. Sensor Array | -5/Factory | Hacked Exp. Signal Interpreter | -5/Factory | Hacked Exp. Terrain Scanner | -5/Factory | Hacked Exp. Terrain Scan Processor | -5/Factory | Hacked Exp. Propulsion Shielding | -5/Factory | Hacked Cld. Nuclear Pulse Thruster | -5/Factory | Hacked Com. HERF Cannon | -5/Factory | Hacked Imp. Remote Datajack | -5/Factory | Hacked Mic. Fission Core | -4/Factory | Hacked Nanoactuators | -4/Factory | Hacked Impulse Thruster Array | -4/Factory | Hacked Force Lance | -4/Factory | Hacked Assault Drone Bay | -4/Zhirov | Free Exp. Heat Sink | -4/Zhirov | Free Exp. Optical Array | -4/Zhirov | Free Imp. Arc Thrower | -4/Zhirov | Free Mni. Fusion Reactor | -3/Proximity Caves | Hacked Robot Schematics ------------------ O-16 Technician | -10/Materials | Hacked M-28 Smith | -8/Storage | Hacked H-55 Commando | -8/Storage | Hacked I-36 Angel | -6/Data Miner | Free P-70 Sage | -6/Data Miner | Free X-72 Disruptor | -6/Data Miner | Free L-41 Fighter | -6/Data Miner | Free G-50 Soldier | -6/Data Miner | Free S-27 Virus | -6/Data Miner | Free Fabricated ------------ Adv. Phase Shifter | x1 | -5/Factory | Preloaded Exp. Sensor Array | x1 | -5/Factory Exp. Signal Interpreter | x1 | -4/Factory Exp. Terrain Scan Processor | x1 | -4/Factory Exp. Terrain Scanner | x1 | -4/Factory Exp. Propulsion Shielding | x1 | -4/Factory Mni. Fusion Reactor | x1 | -3/Research O-16 Technician | x1 | -3/Research Nanoactuators | x2 | -3/Research Alien Tech Used ----------------- Core Expander Integrated Reactor Transdimensional Reconstructor Core Cannon Sigix Broadsword Achievements -------------- Whoosh! Challenges ------------ None Game ------ Seed SuspensionBiocellPurifier Manual? 0 Play Time 02:55:42 Cumulative 489.4 hours Start 2020.09.16 @ 05:10:45 End 2020.09.17 @ 07:47:15 Sessions 6 Manual Loads 0 Difficulty Rogue Special Mode None Game No. 319 Rogue 319 Adventurer 0 Explorer 0 Win Type - Total 6 Types 4/0/1/0/1/0/0/0/0 Lore% 84 Gallery% 87 Achievement% 69 Wizard Run 0 Options --------- ASCII 0 Keyboard 0 Movement Mouse Keybinds 1 Fullscreen 2 Font 24/Smallcaps Map View 68x50 Tactical HUD 1 Map Filters NONE Filters NONE Steam 1 RUN: 5e2855a9-c499-4fe7-abc3-734c909143be